lending/lending_fUSD_20260312
["ID","MTS","AMOUNT","RATE_DAILY","PERIOD"]
[408277647,1773343842071,-1000.0,0.00015668,2]
[408277648,1773343842082,-1500.0,0.00015668,2]
[408277649,1773343842094,-893.08543644,0.00015668,2]
[408277650,1773343842105,-723.18,0.00015696,2]
[408277651,1773343842118,-1039.63237117,0.00015868,2]
[408277652,1773343842128,-1500.0,0.00015868,2]
[408277653,1773343842141,-1526.17740878,0.00015868,2]
[408277654,1773343842159,-360.72006406,0.00015868,2]
[408277655,1773343842170,-1500.0,0.00015868,2]
[408277656,1773343842180,-2000.0,0.0001589,2]
[408277657,1773343842191,-270.62653071,0.00015949,2]
[408277658,1773343842201,-500.0,0.00015949,2]
[408277659,1773343842211,-287.27422917,0.00015949,2]
[408277660,1773343842225,-5000.0,0.00015949,2]
[408277661,1773343842235,-250.0,0.00015949,2]
[408277662,1773343842245,-4411.10092787,0.00015949,2]
[408277663,1773343842258,-300.0,0.00015949,2]
[408277664,1773343842269,-600.0,0.00015949,2]
[408277665,1773343842279,-600.0,0.00015949,2]
[408277666,1773343842293,-300.0,0.00015949,2]
[408277667,1773343842303,-500.0,0.00015949,2]
[408277668,1773343842314,-1680.0,0.00015949,2]
[408277669,1773343842325,-3173.57426313,0.0001596,2]
[408277670,1773343842335,-723.23,0.0001597,2]
[408277671,1773343842346,-500.0,0.00016048,2]
[408277672,1773343842357,-166.66,0.00016089,2]
[408277673,1773343842367,-2000.0,0.00016216,2]
[408277674,1773343842381,-2000.0,0.00016416,2]
[408277675,1773343842392,-2000.0,0.00016416,2]
[408277676,1773343842402,-166.66,0.00016558,2]
[408277677,1773343842413,-1000.0,0.00016764,2]
[408277678,1773343842424,-15688.44847317,0.00016844,2]
[408277679,1773343842435,-433.0,0.00016868,2]
[408277680,1773343842446,-2000.0,0.00016964,2]
[408277681,1773343842458,-1000.0,0.00016964,2]
[408277682,1773343842469,-300.0,0.00017,2]
[408277683,1773343842479,-507.0,0.00017,2]
[408277684,1773343842490,-2000.0,0.00017165,2]
[408277685,1773343842501,-2351.0,0.00017544,2]
[408277686,1773343842511,-396.0,0.00018162,2]
[408277687,1773343842522,-5050.4602734,0.000185,7]
[408277688,1773343842532,-200.0,0.00018785,2]
[408277689,1773343842543,-2000.0,0.00018882,2]
[408277690,1773343842553,-350.0,0.00019,2]
[408277691,1773343842565,-10000.0,0.00019,7]
[408277692,1773343842575,-15688.44847317,0.00019115,2]
[408277693,1773343842586,-250.0,0.00019158,2]
[408277694,1773343842597,-833.35,0.00019292,2]
[408277695,1773343842607,-3292.0,0.00019298,2]
[408277696,1773343842618,-5000.0,0.000195,7]
[408277697,1773343842629,-507.0,0.0001952,4]
[408277698,1773343842639,-6040.16433066,0.00019548,2]
[408277699,1773343842650,-226.34284905,0.000199,2]
[408277700,1773343842661,-558.0,0.0002,2]
[408277701,1773343842671,-305.57091289,0.0002,2]
[408277702,1773343842682,-628.64,0.0002,7]
[408277703,1773343842693,-500.0,0.0002,2]
[408277704,1773343842703,-219.47681528,0.0002,7]
[408277705,1773343842715,-285.39524426,0.00020284,120]
[408277706,1773343842727,-2000.0,0.00020598,2]
[408277707,1773343842738,-245.85,0.00020732,2]
[408277708,1773343842750,-422.0,0.00020828,2]
[408277709,1773343842760,-422.0,0.00020861,2]
[408277710,1773343842770,-422.0,0.00020865,2]
[408277711,1773343842781,-400.0,0.00021,2]
[408277712,1773343842791,-422.0,0.00021021,2]
[408277713,1773343842801,-422.0,0.00021111,2]
[408277714,1773343842812,-3381.0,0.00021228,2]
[408277715,1773343842822,-422.0,0.00021259,2]
[408277716,1773343842832,-422.0,0.00021264,2]
[408277717,1773343842842,-15688.44847317,0.00021386,2]
[408277718,1773343842853,-422.0,0.00021391,2]
[408277719,1773343842863,-422.0,0.00021497,2]
[408277720,1773343842873,-422.0,0.00021508,2]
[408277721,1773343842884,-422.0,0.00021609,2]
[408277722,1773343842894,-422.0,0.00021625,2]
[408277723,1773343842914,-422.0,0.00021757,2]
[408277724,1773343842926,-422.0,0.00021779,2]
[408277725,1773343842937,-289.92671516,0.00021798,10]
[408277726,1773343842948,-249.62881508,0.00021801,10]
[408277727,1773343842959,-422.0,0.00021801,2]
[408277728,1773343842970,-173.18230233,0.00021807,10]
[408277729,1773343842981,-422.0,0.00021832,2]
[408277730,1773343842993,-5000.0,0.00021918,2]
[408277731,1773343843003,-180.2,0.00021918,2]
[408277732,1773343843015,-422.0,0.00021952,2]
[408277733,1773343843025,-507.0,0.0002204,6]
[408277734,1773343843035,-422.0,0.00022049,2]
[408277735,1773343843046,-422.0,0.00022094,2]
[408277736,1773343843056,-422.0,0.00022222,2]
[408277737,1773343843066,-201.05183099,0.0002225,11]
[408277738,1773343843076,-422.0,0.00022276,2]
[408277739,1773343843086,-422.0,0.00022513,2]
[408277740,1773343843096,-422.0,0.0002263,2]
[408277741,1773343843106,-422.0,0.0002265,2]
[408277742,1773343843117,-422.0,0.00022658,2]
[408277743,1773343843127,-201.01590864,0.00022829,20]
[408277744,1773343843137,-248.11,0.00023207,2]
[408277745,1773343843147,-15688.44847317,0.00023657,2]
[408277746,1773343843159,-479.93,0.00023862,2]
[408277747,1773343843169,-479.93,0.00024259,2]
[408277748,1773343843180,-6040.16433066,0.00024524,2]
[408277749,1773343843190,-507.0,0.0002456,8]
[408277750,1773343843200,-479.93,0.00024657,2]
[408277752,1773343843210,-1000.0,0.00024658,2]
[408277754,1773343843224,-151.0,0.000249,2]
[408277756,1773343843234,-151.0,0.000249,2]
[408277757,1773343843244,-260.138692,0.000249,2]
[408277758,1773343843256,-151.0,0.000249,2]
[408277760,1773343843267,-151.0,0.000249,2]
[408277761,1773343843278,-151.0,0.000249,2]
[408277762,1773343843288,-215.896388,0.000249,2]
[408277763,1773343843299,-151.0,0.000249,2]
[408277764,1773343843310,-207.317476,0.000249,2]
[408277769,1773343843321,-207.317476,0.000249,2]
[408277771,1773343843615,-207.317476,0.000249,2]
[408277773,1773343843625,-207.317476,0.000249,2]
[408277775,1773343843635,-151.0,0.000249,2]
[408277777,1773343843645,-250.0,0.00025,7]
[408277779,1773343843656,-479.9478825,0.00025055,2]
[408277780,1773343843666,-150.0,0.00025625,7]
[408277782,1773343843675,-202.690585,0.00025628,7]
[408277784,1773343843686,-15688.44847317,0.00025928,2]
[408277786,1773343843695,-159.22200495,0.00025948,19]
[408277788,1773343843705,-151.0,0.00026162,2]
[408277790,1773343843714,-163.50554828,0.00026182,2]
[408277791,1773343843723,-507.0,0.0002708,11]
[408277793,1773343843733,-300.0,0.00027397,2]
[408277796,1773343843746,-15688.44847317,0.00028199,2]
[408277798,1773343843755,-1885.92,0.000289,14]
[408277800,1773343843765,-304.76079222,0.00028996,26]
[408277802,1773343843774,-260.18579651,0.00029002,26]
[408277804,1773343843783,-175.63657014,0.00029014,26]
[408277805,1773343843792,-539.0,0.00029239,10]
[408277807,1773343843801,-6040.16433066,0.00029499,2]
[408277809,1773343843811,-500.0,0.00029589,2]
[408277811,1773343843820,-507.0,0.000296,13]
[408277813,1773343843830,-206.45832608,0.00029799,28]
[408277815,1773343843839,-198.532113,0.00030137,7]
[408277817,1773343843849,-159.91083539,0.00030288,2]
[408277819,1773343843859,-162.11877641,0.00030309,2]
[408277823,1773343843867,-162.11877641,0.00030309,2]
[408277825,1773343843877,-159.91083539,0.00030317,2]
[408277827,1773343843886,-15688.44847317,0.0003047,2]
[408277829,1773343843896,-1000.0,0.00030694,7]
[408277831,1773343843905,-1000.0,0.00030968,7]
[408277833,1773343843915,-180.2,0.0003105,2]
[408277835,1773343843924,-206.41863338,0.00031058,46]
[408277837,1773343843933,-1000.0,0.0003111,30]
[408277839,1773343843946,-1000.0,0.00031242,7]
[408277841,1773343843955,-1000.0,0.00031516,7]
[408277843,1773343843964,-222.07,0.00031534,2]
[408277845,1773343843974,-1000.0,0.0003179,7]
[408277847,1773343843983,-5171.64885565,0.00032037,2]
[408277848,1773343843993,-1000.0,0.00032064,7]
[408277849,1773343844002,-922.0,0.00032112,2]
[408277850,1773343844011,-1213.0,0.00032112,2]
[408277851,1773343844021,-2462.0,0.00032112,2]
[408277852,1773343844030,-657.568,0.00032112,2]
[408277853,1773343844039,-1043.0,0.00032112,2]
[408277854,1773343844048,-507.0,0.0003212,15]
[408277855,1773343844057,-1754.45,0.00032122,2]
[408277856,1773343844067,-2726.0,0.00032185,5]
[408277857,1773343844076,-2181.0,0.00032185,5]
[408277858,1773343844086,-1000.0,0.00032338,7]
[408277859,1773343844095,-1000.0,0.00032612,7]
[408277860,1773343844105,-15688.44847317,0.00032741,2]
[408277861,1773343844114,-1000.0,0.00032886,7]
[408277862,1773343844124,-9361.57,0.000329,14]
[408277863,1773343844133,-702.15,0.000329,7]
[408277864,1773343844142,-591.8,0.000329,2]
[408277865,1773343844156,-1000.0,0.0003316,7]
[408277866,1773343844165,-198.54,0.000334,30]
[408277867,1773343844174,-1000.0,0.00033434,7]
[408277868,1773343844183,-1000.0,0.00033708,7]
[408277869,1773343844192,-1963.0,0.00033982,7]
[408277870,1773343844202,-6040.16433066,0.00034474,2]
[408277871,1773343844212,-507.0,0.0003464,18]
[408277872,1773343844225,-15688.44847317,0.00035012,2]
[408277873,1773343844234,-426.394,0.00035112,2]
[408277874,1773343844243,-2462.0,0.00035112,2]
[408277875,1773343844252,-620.0,0.00035112,2]
[408277876,1773343844262,-1043.0,0.00035112,2]
[408277877,1773343844271,-995.0,0.000352,2]
[408277878,1773343844280,-562.0,0.000352,2]
[408277879,1773343844290,-365.27788373,0.00036193,51]
[408277880,1773343844300,-9361.57,0.000362,14]
[408277881,1773343844309,-303.25666467,0.00036203,51]
[408277882,1773343844318,-185.65076138,0.00036222,51]
[408277883,1773343844327,-591.8,0.000363,2]
[408277884,1773343844336,-702.15,0.000365,7]
[408277885,1773343844346,-1571.6,0.000365,30]
[408277886,1773343844359,-507.0,0.0003716,20]
[408277887,1773343844367,-162.27503,0.00037296,55]
[408277888,1773343844376,-228.51763258,0.00037349,55]
[408277889,1773343844386,-163.50554828,0.00037791,2]
[408277891,1773343844395,-198.49,0.00038034,30]
[408277892,1773343844405,-2459.0,0.00038112,2]
[408277894,1773343844414,-620.0,0.00038112,2]
[408277896,1773343844423,-5321.57,0.00038356,120]
[408277898,1773343844432,-166.411458,0.00038356,120]
[408277900,1773343844441,-166.411458,0.00038356,120]
[408277902,1773343844450,-166.411458,0.00038356,120]
[408277904,1773343844459,-151.0,0.00038356,120]
[408277906,1773343844468,-151.0,0.00038356,120]
[408277908,1773343844478,-151.0,0.00038356,120]
[408277910,1773343844487,-400.16,0.00038356,120]
[408277912,1773343844496,-400.16,0.00038356,120]
[408277914,1773343844506,-400.16,0.00038356,120]
[408277917,1773343844515,-400.16,0.00038356,120]
[408277918,1773343844524,-151.0,0.00038356,120]
[408277920,1773343844533,-1047.431,0.00038429,51]
[408277922,1773343844542,-5321.57,0.00038767,120]
[408277924,1773343844554,-500.0,0.00038822,2]
[408277926,1773343844564,-1328.5376,0.00038888,30]
[408277928,1773343844573,-5321.57,0.00039178,120]
[408277930,1773343844582,-228.46253851,0.00039286,94]
[408277932,1773343844591,-6040.16433066,0.00039449,2]
[408277934,1773343844600,-151.0,0.00039486,120]
[408277936,1773343844610,-591.8,0.000395,30]
[408277938,1773343844619,-5321.57,0.00039589,120]
[408277940,1773343844629,-507.0,0.0003968,22]
[408277942,1773343844639,-5321.57,0.0004,120]
[408277944,1773343844649,-702.15,0.0004,30]
[408277946,1773343844661,-180.2,0.00040183,30]
[408277948,1773343844670,-5321.57,0.0004041,120]
[408277950,1773343844680,-5321.57,0.00040821,120]
[408277952,1773343844689,-31934.61928543,0.00041,30]
[408277954,1773343844699,-151.0,0.00041,120]
[408277956,1773343844709,-375.06315449,0.00041096,2]
[408277958,1773343844718,-620.0,0.00041112,2]
[408277960,1773343844728,-5321.57,0.00041232,120]
[408277962,1773343844738,-6347.0,0.00041433,2]
[408277964,1773343844747,-5321.57,0.00041643,120]
[408277966,1773343844756,-5321.57,0.00042054,120]
[408277968,1773343844766,-507.0,0.000422,25]
[408277970,1773343844775,-172.0,0.00042462,14]
[408277972,1773343844785,-5321.57,0.00042465,120]
[408277974,1773343844795,-150.0,0.00042546,120]
[408277976,1773343844805,-9361.57,0.000426,14]
[408277978,1773343844815,-591.8,0.000426,30]
[408277980,1773343844825,-167.469065,0.000427,120]
[408277982,1773343844835,-151.0,0.000427,120]
[408277984,1773343844844,-151.0,0.000427,120]
[408277986,1773343844853,-5321.57,0.00042876,120]
[408277988,1773343844863,-151.0,0.00042882,120]
[408277990,1773343844872,-25000.0,0.00042882,15]
[408277992,1773343844881,-151.0,0.00042891,14]
[408277994,1773343844892,-25000.0,0.00042891,15]
[408277996,1773343844901,-702.15,0.000429,30]
[408277998,1773343844913,-25000.0,0.000429,15]
[408278000,1773343844923,-16801.59937492,0.000429,15]
[408278002,1773343844932,-151.0,0.000429,120]
[408278004,1773343844941,-4389.697939,0.000429,120]
[408278007,1773343844959,-4389.697939,0.000429,120]
[408278009,1773343844969,-4389.697939,0.000429,120]
[408278011,1773343844979,-4389.697939,0.000429,120]
[408278014,1773343844988,-306.96741301,0.00043005,2]
[408278015,1773343844998,-857.12196779,0.00043005,2]
[408278018,1773343845008,-308.23791899,0.00043005,2]
[408278019,1773343845017,-459.91927107,0.00043005,2]
[408278021,1773343845026,-520.22493478,0.00043005,2]
[408278023,1773343845035,-307.19554063,0.00043005,2]
[408278025,1773343845045,-1085.47073912,0.00043005,2]
[408278027,1773343845055,-300.0,0.00043005,2]
[408278030,1773343845065,-346.51232205,0.00043005,2]
[408278032,1773343845075,-300.0,0.00043005,2]
[408278034,1773343845084,-302.33355981,0.00043005,2]
[408278036,1773343845093,-300.0,0.00043005,2]
[408278038,1773343845102,-1085.47073912,0.00043005,2]
[408278040,1773343845112,-300.0,0.00043005,2]
[408278042,1773343845122,-151.0,0.00043068,120]
[408278044,1773343845131,-200.0,0.00043068,120]
[408278046,1773343845140,-200.0,0.00043068,120]
[408278048,1773343845149,-200.0,0.00043068,120]
[408278050,1773343845159,-200.0,0.00043068,120]
[408278052,1773343845169,-200.0,0.00043068,120]
[408278054,1773343845178,-5321.57,0.00043287,120]
[408278056,1773343845187,-372.48747924,0.00043391,83]
[408278058,1773343845196,-308.33524455,0.00043404,83]
[408278059,1773343845206,-186.80832888,0.00043429,84]
[408278061,1773343845217,-1444.0,0.00043562,120]
[408278063,1773343845228,-5321.57,0.00043698,120]
[408278065,1773343845237,-1754.45,0.00043903,120]
[408278068,1773343845247,-5321.57,0.00044109,120]
[408278070,1773343845258,-620.0,0.00044112,2]
[408278072,1773343845268,-6040.16433066,0.00044425,28]
[408278074,1773343845277,-5321.57,0.0004452,120]
[408278076,1773343845287,-500.0,0.0004452,120]
[408278077,1773343845296,-500.0,0.0004452,120]
[408278079,1773343845305,-500.0,0.0004452,120]
[408278081,1773343845314,-500.0,0.0004452,120]
[408278083,1773343845324,-500.0,0.0004452,120]
[408278085,1773343845333,-500.0,0.0004452,120]
[408278088,1773343845346,-500.0,0.0004452,120]
[408278090,1773343845356,-500.0,0.0004452,120]
[408278092,1773343845365,-500.0,0.0004452,120]
[408278094,1773343845374,-500.0,0.0004452,120]
[408278096,1773343845384,-500.0,0.0004452,120]
[408278098,1773343845393,-500.0,0.0004452,120]
[408278100,1773343845403,-500.0,0.0004452,120]
[408278102,1773343845412,-500.0,0.0004452,120]
[408278104,1773343845422,-500.0,0.0004452,120]
[408278106,1773343845431,-500.0,0.0004452,120]
[408278108,1773343845441,-500.0,0.0004452,120]
[408278110,1773343845451,-500.0,0.0004452,120]
[408278112,1773343845460,-993.0,0.0004452,120]
[408278114,1773343845470,-500.0,0.0004452,120]
[408278116,1773343845479,-500.0,0.0004452,120]
[408278117,1773343845489,-500.0,0.0004452,120]
[408278119,1773343845499,-500.0,0.0004452,120]
[408278121,1773343845510,-500.0,0.0004452,120]
[408278122,1773343845524,-500.0,0.0004452,120]
[408278124,1773343845541,-500.0,0.0004452,120]
[408278125,1773343845550,-500.0,0.0004452,120]
[408278126,1773343845560,-500.0,0.0004452,120]
[408278127,1773343845569,-500.0,0.0004452,120]
[408278128,1773343845579,-500.0,0.0004452,120]
[408278129,1773343845588,-500.0,0.0004452,120]
[408278130,1773343845598,-500.0,0.0004452,120]
[408278131,1773343845608,-500.0,0.0004452,120]
[408278132,1773343845618,-500.0,0.0004452,120]
[408278133,1773343845627,-889.0,0.0004452,120]
[408278134,1773343845637,-500.0,0.0004452,120]
[408278135,1773343845646,-500.0,0.0004452,120]
[408278136,1773343845656,-500.0,0.0004452,120]
[408278137,1773343845667,-500.0,0.0004452,120]
[408278138,1773343845676,-500.0,0.0004452,120]
[408278139,1773343845686,-500.0,0.0004452,120]
[408278140,1773343845696,-500.0,0.0004452,120]
[408278141,1773343845705,-500.0,0.0004452,120]
[408278142,1773343845715,-500.0,0.0004452,120]
[408278143,1773343845724,-500.0,0.0004452,120]
[408278144,1773343845734,-500.0,0.0004452,120]
[408278145,1773343845749,-500.0,0.0004452,120]
[408278146,1773343845759,-500.0,0.0004452,120]
[408278147,1773343845769,-500.0,0.0004452,120]
[408278148,1773343845778,-500.0,0.0004452,120]
[408278149,1773343845788,-500.0,0.0004452,120]
[408278150,1773343845798,-500.0,0.0004452,120]
[408278151,1773343845808,-500.0,0.0004452,120]
[408278152,1773343845818,-500.0,0.0004452,120]
[408278153,1773343845828,-603.0,0.0004452,120]
[408278154,1773343845838,-500.0,0.0004452,120]
[408278155,1773343845851,-500.0,0.0004452,120]
[408278156,1773343845861,-500.0,0.0004452,120]
[408278157,1773343845871,-500.0,0.0004452,120]
[408278158,1773343845881,-500.0,0.0004452,120]
[408278159,1773343845891,-500.0,0.0004452,120]
[408278160,1773343845901,-500.0,0.0004452,120]
[408278161,1773343845912,-500.0,0.0004452,120]
[408278162,1773343845922,-500.0,0.0004452,120]
[408278163,1773343845932,-500.0,0.0004452,120]
[408278164,1773343845942,-500.0,0.0004452,120]
[408278165,1773343845952,-500.0,0.0004452,120]
[408278166,1773343845961,-500.0,0.0004452,120]
[408278167,1773343845971,-500.0,0.0004452,120]
[408278168,1773343845981,-500.0,0.0004452,120]
[408278169,1773343845991,-500.0,0.0004452,120]
[408278170,1773343846001,-500.0,0.0004452,120]
[408278171,1773343846011,-500.0,0.0004452,120]
[408278172,1773343846020,-500.0,0.0004452,120]
[408278173,1773343846030,-500.0,0.0004452,120]
[408278174,1773343846040,-500.0,0.0004452,120]
[408278175,1773343846050,-500.0,0.0004452,120]
[408278176,1773343846059,-500.0,0.0004452,120]
[408278177,1773343846068,-500.0,0.0004452,120]
[408278179,1773343846078,-500.0,0.0004452,120]
[408278181,1773343846088,-500.0,0.0004452,120]
[408278183,1773343846098,-500.0,0.0004452,120]
[408278184,1773343846108,-500.0,0.0004452,120]
[408278185,1773343846118,-500.0,0.0004452,120]
[408278186,1773343846128,-500.0,0.0004452,120]
[408278187,1773343846137,-500.0,0.0004452,120]
[408278188,1773343846147,-500.0,0.0004452,120]
[408278189,1773343846156,-500.0,0.0004452,120]
[408278190,1773343846168,-500.0,0.0004452,120]
[408278191,1773343846178,-500.0,0.0004452,120]
[408278192,1773343846187,-500.0,0.0004452,120]
[408278193,1773343846197,-500.0,0.0004452,120]
[408278194,1773343846206,-500.0,0.0004452,120]
[408278196,1773343846220,-500.0,0.0004452,120]
[408278198,1773343846229,-500.0,0.0004452,120]
[408278200,1773343846238,-500.0,0.0004452,120]
[408278201,1773343846248,-500.0,0.0004452,120]
[408278202,1773343846259,-500.0,0.0004452,120]
[408278203,1773343846268,-500.0,0.0004452,120]
[408278204,1773343846278,-500.0,0.0004452,120]
[408278205,1773343846288,-500.0,0.0004452,120]
[408278206,1773343846297,-500.0,0.0004452,120]
[408278207,1773343846307,-500.0,0.0004452,120]
[408278208,1773343846316,-500.0,0.0004452,120]
[408278209,1773343846326,-500.0,0.0004452,120]
[408278210,1773343846336,-500.0,0.0004452,120]
[408278211,1773343846345,-500.0,0.0004452,120]
[408278212,1773343846354,-500.0,0.0004452,120]
[408278213,1773343846363,-500.0,0.0004452,120]
[408278214,1773343846372,-500.0,0.0004452,120]
[408278215,1773343846381,-500.0,0.0004452,120]
[408278216,1773343846390,-500.0,0.0004452,120]
[408278217,1773343846400,-500.0,0.0004452,120]
[408278218,1773343846411,-500.0,0.0004452,120]
[408278219,1773343846420,-500.0,0.0004452,120]
[408278220,1773343846430,-500.0,0.0004452,120]
[408278221,1773343846439,-500.0,0.0004452,120]
[408278222,1773343846448,-500.0,0.0004452,120]
[408278223,1773343846458,-500.0,0.0004452,120]
[408278224,1773343846468,-500.0,0.0004452,120]
[408278225,1773343846477,-500.0,0.0004452,120]
[408278226,1773343846487,-500.0,0.0004452,120]
[408278227,1773343846498,-500.0,0.0004452,120]
[408278228,1773343846508,-500.0,0.0004452,120]
[408278230,1773343846518,-500.0,0.0004452,120]
[408278231,1773343846528,-500.0,0.0004452,120]
[408278232,1773343846538,-500.0,0.0004452,120]
[408278233,1773343846547,-500.0,0.0004452,120]
[408278234,1773343846556,-500.0,0.0004452,120]
[408278235,1773343846566,-500.0,0.0004452,120]
[408278237,1773343846575,-500.0,0.0004452,120]
[408278239,1773343846585,-500.0,0.0004452,120]
[408278240,1773343846594,-500.0,0.0004452,120]
[408278241,1773343846604,-500.0,0.0004452,120]
[408278242,1773343846614,-500.0,0.0004452,120]
[408278243,1773343846623,-500.0,0.0004452,120]
[408278244,1773343846632,-500.0,0.0004452,120]
[408278245,1773343846641,-500.0,0.0004452,120]
[408278246,1773343846651,-500.0,0.0004452,120]
[408278247,1773343846660,-500.0,0.0004452,120]
[408278248,1773343846670,-500.0,0.0004452,120]
[408278249,1773343846680,-500.0,0.0004452,120]
[408278251,1773343846850,-500.0,0.0004452,120]
[408278252,1773343846863,-500.0,0.0004452,120]
[408278254,1773343846873,-500.0,0.0004452,120]
[408278256,1773343846883,-500.0,0.0004452,120]
[408278258,1773343846893,-500.0,0.0004452,120]
[408278259,1773343846903,-500.0,0.0004452,120]
[408278260,1773343846913,-500.0,0.0004452,120]
[408278261,1773343846922,-500.0,0.0004452,120]
[408278262,1773343846932,-500.0,0.0004452,120]
[408278263,1773343846943,-500.0,0.0004452,120]
[408278264,1773343846953,-500.0,0.0004452,120]
[408278265,1773343846963,-500.0,0.0004452,120]
[408278266,1773343846973,-593.0,0.0004452,120]
[408278267,1773343846983,-500.0,0.0004452,120]
[408278268,1773343846992,-500.0,0.0004452,120]
[408278269,1773343847001,-500.0,0.0004452,120]
[408278270,1773343847010,-500.0,0.0004452,120]
[408278271,1773343847020,-500.0,0.0004452,120]
[408278272,1773343847029,-500.0,0.0004452,120]
[408278273,1773343847039,-500.0,0.0004452,120]
[408278274,1773343847048,-500.0,0.0004452,120]
[408278275,1773343847057,-500.0,0.0004452,120]
[408278276,1773343847066,-500.0,0.0004452,120]
[408278277,1773343847075,-500.0,0.0004452,120]
[408278278,1773343847085,-500.0,0.0004452,120]
[408278279,1773343847094,-500.0,0.0004452,120]
[408278280,1773343847103,-500.0,0.0004452,120]
[408278281,1773343847112,-500.0,0.0004452,120]
[408278282,1773343847122,-500.0,0.0004452,120]
[408278283,1773343847131,-500.0,0.0004452,120]
[408278284,1773343847141,-500.0,0.0004452,120]
[408278285,1773343847150,-500.0,0.0004452,120]
[408278286,1773343847160,-500.0,0.0004452,120]
[408278287,1773343847170,-500.0,0.0004452,120]
[408278288,1773343847179,-500.0,0.0004452,120]
[408278289,1773343847190,-500.0,0.0004452,120]
[408278290,1773343847199,-500.0,0.0004452,120]
[408278291,1773343847209,-500.0,0.0004452,120]
[408278292,1773343847222,-500.0,0.0004452,120]
[408278293,1773343847231,-500.0,0.0004452,120]
[408278294,1773343847241,-500.0,0.0004452,120]
[408278295,1773343847251,-500.0,0.0004452,120]
[408278296,1773343847261,-500.0,0.0004452,120]
[408278297,1773343847271,-500.0,0.0004452,120]
[408278298,1773343847281,-500.0,0.0004452,120]
[408278299,1773343847290,-500.0,0.0004452,120]
[408278300,1773343847302,-500.0,0.0004452,120]
[408278301,1773343847312,-500.0,0.0004452,120]
[408278302,1773343847321,-500.0,0.0004452,120]
[408278303,1773343847330,-500.0,0.0004452,120]
[408278304,1773343847340,-500.0,0.0004452,120]
[408278305,1773343847349,-500.0,0.0004452,120]
[408278306,1773343847358,-611.0,0.0004452,120]
[408278307,1773343847368,-500.0,0.0004452,120]
[408278308,1773343847377,-500.0,0.0004452,120]
[408278309,1773343847387,-500.0,0.0004452,120]
[408278310,1773343847396,-500.0,0.0004452,120]
[408278311,1773343847406,-500.0,0.0004452,120]
[408278312,1773343847415,-516.0,0.0004452,120]
[408278313,1773343847425,-1322.0,0.0004467,120]
[408278314,1773343847435,-155.0,0.0004467,120]
[408278315,1773343847444,-472.0,0.0004467,120]
[408278316,1773343847454,-222.07,0.0004469,14]
[408278317,1773343847464,-507.0,0.0004472,27]
[408278318,1773343847474,-231.08580905,0.00044899,97]
[408278319,1773343847483,-5500.0,0.000449,16]
[408278320,1773343847492,-5321.57,0.00044931,120]
[408278321,1773343847502,-150.0,0.00045,30]
[408278322,1773343847511,-186.46025929,0.00045,30]
[408278323,1773343847521,-211.88823769,0.00045,30]